Cogmind - Beta 13 @@@ ROGUE MODE // 2024.03.31 @ 18:35:33 Player: Shiki Result: Destroyed self with Grenade Launcher Performance ------------- Evolutions (0) 0 Regions Visited (2) 400 Robots Destroyed (10) 50 Value Destroyed (308) 308 Prototype IDs (0) 0 Alien Tech Used (0) 0 Bonus (0) 0 TOTAL SCORE: 758 Bonus ------- None Cogmind --------- Core Integrity 0/250 Matter 269/300 Energy 150/160 System Corruption 0% Temperature Cool (0) Movement Walking (260) Ox2 Location -10/Mines Parts ------- > --- POWER (1) -------- Light Nuclear Core > --- PROPULSION (2) --- Aluminum Leg Aluminum Leg > --- UTILITY (2) ------ High-capacity Storage Unit Terrain Scanner > --- WEAPON (2) ------- Particle Gun Grenade Launcher > --- INVENTORY (20) --- Ion Engine Light Treads Aluminum Leg Aluminum Leg Wheel Hover Unit Flight Unit Flight Unit Heat Sink Small Matter Pod (0) Seismic Detector Medium Laser Medium Laser Medium Laser Medium Laser Small Laser Small Laser Light Assault Rifle Light Assault Rifle Peak State ------------ > --- POWER ------------ Light Nuclear Core > --- PROPULSION ------- Wheel Wheel > --- UTILITY ---------- High-capacity Storage Unit Small Battery > --- WEAPON ----------- Light Assault Rifle Light Assault Rifle > --- INVENTORY -------- Ion Engine Light Treads Aluminum Leg Aluminum Leg Aluminum Leg Aluminum Leg Hover Unit Flight Unit Flight Unit Heat Sink Small Matter Pod Terrain Scanner Seismic Detector Medium Laser Medium Laser Medium Laser Medium Laser Small Laser Small Laser Grenade Launcher [Rating: 11] Favorites ----------- Power Light Nuclear Core Engine Ion Engine Power Core Light Nuclear Core Propulsion Aluminum Leg Leg Aluminum Leg Wheel Wheel Flight Unit Flight Unit Utility High-capacity Storage Unit Device Terrain Scanner Storage High-capacity Storage Unit Protection Light Armor Plating Weapon Light Assault Rifle Energy Gun Medium Laser Ballistic Gun Light Assault Rifle Launcher Grenade Launcher Build | -11 -10 -10 ------- Run | Yrd Mat Min Slots Evolved . | . . . Power . | . . . Propulsion . | . . . Utility . | . . . Weapon . | . . . Parts Attached 38 | 8 25 5 Power 5 | 2 3 . Engine 4 | 2 2 . Core 1 | . 1 . Reactor . | . . . Propulsion 14 | 4 8 2 Treads . | . . . Leg 7 | 2 3 2 Wheel 6 | 2 4 . Hover . | . . . Flight 1 | . 1 . Utility 8 | . 7 1 Device 1 | . . 1 Storage 6 | . 6 . Processor . | . . . Hackware . | . . . Protection 1 | . 1 . Artifact . | . . . Weapon 11 | 2 7 2 Energy Gun 4 | 1 2 1 Energy Cannon . | . . . Ballistic Gun 6 | 1 5 . Ballistic Cannon . | . . . Launcher 1 | . . 1 Special Weapon . | . . . Impact Weapon . | . . . Slashing Weapon . | . . . Piercing Weapon . | . . . Special Melee Weapon . | . . . Unidentified Prototypes . | . . . Parts Lost 4 | . 2 2 Power . | . . . Propulsion 2 | . 1 1 Utility 2 | . 1 1 Weapon . | . . . Highest Loss Streak 2 | . 1 2 To Critical Strikes . | . . . Average Slot Usage (%) 96 | . 95 96 Engine 6 | . 10 . Core 7 | . 3 14 Leg 15 | . 11 22 Wheel 12 | . 16 4 Device 3 | . . 11 Storage 16 | . 18 14 Protection 4 | . 7 . Energy Gun 6 | . 5 8 Ballistic Gun 17 | . 22 8 Launcher 3 | . . 11 Naked Turns . | . . . Heaviest Build 52 | 8 52 52 Greatest Support 20 | 20 20 20 Greatest Overweight (x) 4 | . 4 4 Average Overweight (x) 1 | . 1 2 Largest Inventory Capacity 20 | 5 20 20 Average Capacity 16 | 5 17 20 Most Carried 20 | 5 20 20 Average Carried 14 | 2 14 18 Final Capacity 20 | 5 20 20 Final Carried 20 | 5 20 19 Class Distribution -------------------- 100% | Mutant Dominant Class ---------------- Mutant | -10/Materials Mutant | -10/Mines Resources | -11 -10 -10 ----------- Run | Yrd Mat Min Matter Collected 638 | 283 265 90 Remotely . | . . . Salvage Created 349 | 45 212 92 Parts 23 | 3 12 8 Haulers Intercepted . | . . . Recyclers Shooed . | . . . Parts Field Recycled . | . . . Retrieved Matter . | . . . Parts Self-Destructed . | . . . Prevented . | . . . Kills | -11 -10 -10 ------- Run | Yrd Mat Min Combat Hostiles Destroyed 8 | 1 4 3 Guns 7 | 1 4 2 AOE 1 | . . 1 Classes Destroyed 4 | 1 2 1 Builder 1 | . 1 . Watcher 1 | . 1 . Swarmer 1 | . . 1 Grunt 7 | 1 4 2 Best Kill Streak 3 | 1 3 1 Combat Bots Only 2 | 1 2 1 Max Kills in Single Turn 1 | 1 1 1 Gunslinging . | . . . Exploded 1 | . . 1 Melee . | . . . Uniques/NPCs Destroyed . | . . . Combat | -11 -10 -10 -------- Run | Yrd Mat Min Hostile Shots Fired 69 | 4 43 22 Missed 11 | 1 9 1 Damage Taken 807 | 33 458 316 Core 265 | . 100 165 Absorbed by Shields . | . . . Core Remaining (%) 100 | 100 . . Volleys Fired 52 | 3 34 15 Largest 2 | 2 2 2 Hottest 95 | 70 40 95 Shots Fired 104 | 6 68 30 Gun 103 | 6 68 29 Cannon . | . . . Launcher 1 | . . 1 Special . | . . . Kinetic 99 | 3 68 28 Thermal 4 | 3 . 1 Explosive 1 | . . 1 Electromagnetic . | . . . Robot Hit Streak 10 | 2 10 6 Robot Miss Streak 5 | 2 5 2 Penetration Max . | . . . Secondary Targets . | . . . Shots Hit Robots 57 | 3 36 18 Core Hits 25 | 2 16 7 Critical Kills . | . . . Critical Parts Destroyed . | . . . Critical Strikes . | . . . Melee Attacks . | . . . Impact . | . . . Slashing . | . . . Piercing . | . . . Sneak Attacks . | . . . Combat Hostiles . | . . . Follow-up Attacks . | . . . Damage Inflicted 541 | 33 309 199 Guns 485 | 33 309 143 Cannons . | . . . Explosions 56 | . . 56 Melee . | . . . Ramming . | . . . Kinetic 460 | 8 309 143 Thermal 25 | 25 . . Explosive 56 | . . 56 Electromagnetic . | . . . Impact . | . . . Slashing . | . . . Piercing . | . . . Highest Corruption . | . . . Average Corruption . | . . . Corruption Purged . | . . . Corruption Blocked . | . . . Overload Shots . | . . . Overflow Damage . | . . . Projectiles . | . . . Explosions . | . . . Melee . | . . . Knockbacks . | . . . Impact . | . . . Kinetic . | . . . Secondary . | . . . Self-Inflicted Damage 34 | . . 34 Shots 1 | . . 1 Rammed . | . . . Targets Rammed . | . . . Kicked . | . . . Crushed . | . . . Highest Temperature 99 | 68 76 99 Average Temperature 37 | 35 26 59 Received Heat Transfer 465 | 18 261 186 Siege Activations . | . . . Robots Corrupted . | . . . Combat Hostiles . | . . . Parts Fried . | . . . Impact Corruptions . | . . . Robots Melted . | . . . Combat Hostiles . | . . . Parts Melted . | . . . Heat Transferred 74 | 74 . . Parts Sabotaged . | . . . Parts Stolen . | . . . Parts Stripped . | . . . Power Chain Reactions . | . . . Alert | -11 -10 -10 ------- Run | Yrd Mat Min Peak Influence 145 | 20 145 61 Initial 16 | . 13 16 Average 60 | 3 72 57 Maximum Alert Level . | . . . Low Security (%) 100 | 100 100 100 Level 1 . | . . . Level 2 . | . . . Level 3 . | . . . Level 4 . | . . . Level 5 . | . . . High Security . | . . . Max Security . | . . . Squads Dispatched . | . . . Investigation . | . . . Extermination . | . . . Reinforcement . | . . . Assault . | . . . Garrison . | . . . Intercept . | . . . Searches Triggered . | . . . Construction Impeded . | . . . Haulers Reinforced . | . . . Active Scanning Responses . | . . . Cargo Convoy Interrupts . | . . . Stealth | -11 -10 -10 --------- Run | Yrd Mat Min Distress Signals 1 | . 1 . Communications Jammed . | . . . Distress Signals . | . . . Times Spotted 17 | 1 13 3 Peak Tracking Total 5 | 1 5 3 Tactical Retreats . | . . . Traps | -11 -10 -10 ------- Run | Yrd Mat Min Traps Triggered 2 | . 2 . Indirectly . | . . . Trap Hack Attempts . | . . . Triggered . | . . . Disarmed . | . . . Reprogrammed . | . . . Reused . | . . . Traps Extracted . | . . . Installed . | . . . Triggered . | . . . Machines | -11 -10 -10 ---------- Run | Yrd Mat Min Machines Disabled . | . . . Max in Single Turn . | . . . Machines Repaired . | . . . Machines Dismantled . | . . . Machines Sabotaged . | . . . Overloaded Fab Kills . | . . . Hacking | -11 -10 -10 --------- Run | Yrd Mat Min Machines Accessed 3 | . 3 . Terminals 3 | . 3 . Fabricators . | . . . Repair Stations . | . . . Recycling Units . | . . . Scanalyzers . | . . . Garrison Access . | . . . Total Hacks 8 | . 8 . Successful 6 | . 6 . Failed 2 | . 2 . Catastrophic . | . . . Database Lockouts . | . . . Manual . | . . . Terminals 8 | . 8 . Fabricators . | . . . Repair Stations . | . . . Recycling Units . | . . . Scanalyzers . | . . . Garrison Access . | . . . Terminal Hacks 6 | . 6 . Record 3 | . 3 . Alert Level 1 | . 1 . Hauler Manifests 1 | . 1 . Zone Layout 1 | . 1 . Fabricator Hacks . | . . . Repair Station Hacks . | . . . Recycling Unit Hacks . | . . . Scanalyzer . | . . . Garrison Access Hacks . | . . . Unauthorized Hacks . | . . . Terminals . | . . . Fabricators . | . . . Repair Stations . | . . . Recycling Units . | . . . Scanalyzers . | . . . Garrison Access . | . . . Data Cores Recovered . | . . . Used . | . . . Hacking Detections 2 | . 2 . Full Trace Events . | . . . Feedback Events . | . . . Feedback Blocked . | . . . Robot Schematics Acquired . | . . . Robots Built . | . . . Authchips . | . . . Time . | . . . Total Robot Build Rating . | . . . Part Schematics Acquired . | . . . Parts Built . | . . . Authchips . | . . . Time . | . . . Total Part Build Rating . | . . . Parts Repaired . | . . . Time . | . . . Parts Recycled . | . . . Recycled Matter . | . . . Retrieved Matter . | . . . Retrieved Components . | . . . Parts Scanalyzed . | . . . Part Schematics Acquired . | . . . Parts Damaged . | . . . Bothacking | -11 -10 -10 ------------ Run | Yrd Mat Min Used RIF Installer . | . . . Robots Hacked . | . . . Non-combat . | . . . Combat . | . . . Robot Hacks Applied . | . . . Relay Couplers Released . | . . . Fabnet Peak Effective % . | . . . Robots Rewired . | . . . Allies Hacked . | . . . Hacks Repelled . | . . . Allies | -11 -10 -10 -------- Run | Yrd Mat Min Total Allies . | . . . Largest Group . | . . . Highest-Rated Group . | . . . Highest-Rated Ally . | . . . Total Orders . | . . . Ally Attacks . | . . . Total Damage . | . . . Kills . | . . . Allies Corrupted . | . . . Allies Melted . | . . . Intel | -11 -10 -10 ------- Run | Yrd Mat Min Robot Analysis Total . | . . . Derelict Logs Recovered 1 | . . 1 Drone Launches . | . . . Drone Recoveries . | . . . Exploration | -11 -10 -10 ------------- Run | Yrd Mat Min Turns Passed 793 | 80 477 236 Spaces Moved 365 | 69 222 74 Core 15 | 15 . . Treads . | . . . Legs 129 | 5 52 72 Wheels 221 | 49 170 2 Hover . | . . . Flight . | . . . Fastest Speed 50 | 50 80 140 Average Speed 148 | 76 134 256 Slowest Speed 260 | 120 260 260 Overloaded Moves . | . . . Propulsion Burnouts . | . . . Robots Hopped . | . . . Cave-ins Triggered . | . . . Exploration Rate (%) 18 | 6 34 16 Regions Visited 2 Branch Regions 1 Pre-discovered Areas . | . . . Known Exits Taken . | . . . Unknown Exits Taken 2 | 1 1 . Scrap Searched . | . . . Spaces Dug . | . . . Terrain Destroyed 2 | . . 2 Melee . | . . . Projectile . | . . . AOE 2 | . . 2 Terrain Rammed . | . . . Walls Destroyed . | . . . Machines Disabled . | . . . Actions | -11 -10 -10 --------- Run | Yrd Mat Min Total 528 | 89 342 97 Wait 21 | . 21 . Move 363 | 68 221 74 Hop . | . . . Pick Up 43 | 10 31 2 Fast Attach 3 | . 3 . Attach 15 | 5 8 2 Detach . | . . . Swap 20 | 3 14 3 Drop 11 | . 10 1 Fire 52 | 3 34 15 Melee . | . . . Ram . | . . . Kick . | . . . Crush . | . . . Escape Stasis . | . . . Rewire . | . . . Trap . | . . . Miscellaneous . | . . . Route ------- -11/Scrapyard -10/Materials (discovered 2 exits: [*Mat] / [*Min]) -10/Mines (discovered 1 exit: Sub) History --------- Turn | Location | Event 2 | -11/Scrapyard | Met Revision 17 58 | -11/Scrapyard | Discovered new exit (range 8) 81 | -11/Scrapyard | Entered Materials 323 | -10/Materials | Build established: Mutant 542 | -10/Materials | Discovered new exit (range 7) 558 | -10/Materials | Discovered new exit (range 14) 558 | -10/Materials | Entered Mines 563 | -10/Mines | Core integrity fell below 50% 583 | -10/Mines | Core integrity fell below 20% 633 | -10/Mines | Identified exit to Subcaves 794 | -10/Mines | Destroyed self with Grenade Launcher Last Messages --------------- until it reaches a certain quota, at which point it is transferred to the nearest [DSF]. EXIT=FOUND LOCATION=UNKNOWN GOAL=ESCAPE Something is scanning the area. G-34 Mercenary destroyed. Critical hit (Burn: +37). Sml. Battery destroyed. Wheel destroyed. G-47 Trooper destroyed. Dropped Ion Engine. Acquired Ion Engine. Acquired 33 matter. Acquired 57 matter. Acquired derelict log, extracted data. Acquired Particle Gun. [Achievement: Let's See Who's Tougher] S-10 Pest destroyed. [Achievement: First Step to Greatness] Map ----- +----------------------------------------------------+ | ?????????????????????????????## #????? | | ????????????????????#??#?#?#### """ """ #????? | | ????????????????????????? ?? """ """ #????? | | ?????????? ?????????#???# #???# """ """ #????? | | ????????? ?????###?##???# #???# #????? | | ???????????????## ##??#?# ##??# = #????? | | ???????????????# ####?# #???# [ #??#?? | | ???????????????# ##?# ##### = ! #????? | | ????????????#??## ### * #???#? | | ?????????????????# #### #????? | | ??????#??????????# ######??# ##### ####????? | | ?????????????????# ###???????# #???# ##??????? | | ?????????????????# #?????????# ##### ##??????? | | ????????????#????# ######????# #???????? | | ?# ######## ## ####?#########?#???##? | | ????? ??# # ##??#???????????????? | | ??????#?### ###### ##????????#???#????? | | ???????#?????????#### #????#???????#????? | | ????????????????????## #???????#????#????? | | ?????????????????????# ###????????????????? | | ???????????????? ????# ##????????#?????????? | | ????????#??????????#?### ##??? ?? #????????#? | | ????????????????#????#?# #????? #?????????? | | ???????????????????????# #??? ???????????? | | ???????????????????????# # """ ??????????? | | ????????????????? ?#???# @%=""" ??????????? | | ???????????????????????## # """ ??????????? | | ???????????????????????????? ???????????? | | ?????????????#?????????????? #?????????? | | ???????????????????????????????#####?????????? | | ?????????????????????????????????????????????? | | ????????????????????????????????#????????????? | | ?????????????????????????????????????????????? | | ?????????????????????????????????????????????? | | ?????????????????????????????????????????????? | | ?????????????????????????????????????????????? | | ?????????????????????????????????????????????? | | ?????????????????????????????????????????????? | | ?????????????????????????????????????????????? | | ?????????????????????????????????????????????? | | ?????????????????????????????????????????????? | | ?????????????????????????????????????????????? | | ?????????????????????????????????????????????? | | ?????????????????????????????????????????????? | | ?????????????????????????????????????????????? | | ?????????????????????????????????????????????? | | ?????????????????????????????????????????????? | | ?????????????????????????????????????????????? | | ?????????????????????????????????????????????? | | ?????????????????????????????????????????????? | +----------------------------------------------------+ Best States ------------- Heat Dissipation 25 Energy Generation 14 Energy Capacity 350 Matter Stores 300 Matter Capacity 350 Sight Range 16 Terrain Scan Range 14 Terrain Scan Density 10 Armor Coverage 150 Evasion (%) 50 Item Schematics ----------------- None Robot Schematics ------------------ None Fabricated ------------ Nothing Alien Tech Used ----------------- None Achievements -------------- Crack Shot First Step to Greatness Let's See Who's Tougher Shopping List Storm Trooper Challenges ------------ None Game ------ Seed HeavyGuidancePlatform Manual? 0 Play Time 00:42:57 Cumulative 0.6 hours Start 2024.03.31 @ 17:45:13 End 2024.03.31 @ 18:35:33 Sessions 1 Manual Loads 0 Difficulty Rogue Special Mode None Game No. 1 Rogue 1 Adventurer 0 Explorer 0 Win Type - Total 0 Types 0/0/0/0/0/0/0/0/0 Lore% 0 Gallery% 1 Achievement% 1 Wizard Run 0 Options --------- Layout 1 ASCII 0 Keyboard 0 Movement Mouse Keybinds 0 Fullscreen 1 Font 24/Smallcaps Map View 50x35 Zoom Use 0% Tactical HUD 0 Map Filters NONE Filters NONE Steam 1 RUN: 9e4e7c58-f661-47f1-b95a-0911abf71a81